fUSD/lending_fUSD_20250530
["ID","MTS","AMOUNT","RATE_DAILY","PERIOD"]
[363187531,1748619066664,-420.0,0.00022465,2]
[363187532,1748619066674,-420.0,0.00022465,2]
[363187533,1748619066683,-420.86,0.00022465,2]
[363187534,1748619066693,-426.87,0.00022465,2]
[363187535,1748619066703,-383.82478649,0.00022465,2]
[363187536,1748619066713,-420.0,0.00022465,2]
[363187537,1748619066723,-420.0,0.00022465,2]
[363187538,1748619066732,-420.0,0.00022465,2]
[363187539,1748619066743,-424.91,0.00022465,2]
[363187540,1748619066752,-420.0,0.00022465,2]
[363187541,1748619066762,-420.0,0.00022465,2]
[363187542,1748619066771,-429.06,0.00022465,2]
[363187543,1748619066781,-420.0,0.00022465,2]
[363187544,1748619066795,-420.0,0.00022465,2]
[363187545,1748619066805,-420.0,0.00022465,2]
[363187546,1748619066815,-758.53,0.00022465,2]
[363187547,1748619066825,-420.0,0.00022465,2]
[363187548,1748619066835,-420.0,0.00022465,2]
[363187549,1748619066847,-420.0,0.00022465,2]
[363187550,1748619066857,-420.0,0.00022465,2]
[363187551,1748619066868,-160.0,0.00022465,2]
[363187552,1748619066878,-772.94,0.00022465,2]
[363187553,1748619066887,-420.0,0.00022465,2]
[363187554,1748619066897,-420.0,0.00022465,2]
[363187555,1748619066907,-420.0,0.00022465,2]
[363187556,1748619066916,-420.0,0.00022465,2]
[363187557,1748619066926,-500.0,0.00022465,2]
[363187558,1748619066935,-427.85,0.00022465,2]
[363187559,1748619066945,-420.0,0.00022465,2]
[363187560,1748619066961,-543.01554174,0.00022465,2]
[363187561,1748619066970,-420.0,0.00022465,2]
[363187562,1748619066979,-420.0,0.00022465,2]
[363187563,1748619066989,-456.87,0.00022465,2]
[363187564,1748619066999,-420.0,0.00022465,2]
[363187565,1748619067008,-420.0,0.00022465,2]
[363187566,1748619067017,-151.0,0.00022465,7]
[363187567,1748619067028,-420.0,0.00022465,2]
[363187568,1748619067038,-425.80312469,0.00022465,2]
[363187569,1748619067048,-420.0,0.00022465,2]
[363187570,1748619067057,-420.0,0.00022465,2]
[363187571,1748619067067,-151.0,0.00022465,7]
[363187572,1748619067077,-151.0,0.00022465,7]
[363187573,1748619067086,-420.0,0.00022465,2]
[363187574,1748619067095,-420.0,0.00022465,2]
[363187575,1748619067105,-151.0,0.00022465,7]
[363187576,1748619067115,-151.0,0.00022465,7]
[363187577,1748619067124,-420.0,0.00022465,2]
[363187578,1748619067134,-420.0,0.00022465,2]
[363187579,1748619067145,-151.0,0.00022465,7]
[363187580,1748619067154,-420.0,0.00022465,2]
[363187581,1748619067163,-420.0,0.00022465,2]
[363187582,1748619067173,-151.0,0.00022465,7]
[363187583,1748619067183,-151.0,0.00022465,7]
[363187584,1748619067192,-420.0,0.00022465,2]
[363187585,1748619067202,-151.0,0.00022465,7]
[363187586,1748619067211,-161.464784,0.00022465,7]
[363187587,1748619067220,-420.0,0.00022465,2]
[363187588,1748619067230,-420.0,0.00022465,2]
[363187589,1748619067239,-420.0,0.00022465,2]
[363187590,1748619067251,-777.89,0.00022465,2]
[363187591,1748619067260,-1819.65,0.00022465,2]
[363187592,1748619067269,-863.65,0.00022465,2]
[363187593,1748619067279,-420.0,0.00022465,2]
[363187594,1748619067288,-420.0,0.00022465,2]
[363187595,1748619067298,-420.0,0.00022465,2]
[363187596,1748619067307,-151.0,0.00022465,7]
[363187597,1748619067317,-1212.65,0.00022465,2]
[363187598,1748619067326,-420.0,0.00022465,2]
[363187599,1748619067335,-420.0,0.00022465,2]
[363187600,1748619067345,-1175.81,0.00022465,2]
[363187601,1748619067354,-420.0,0.00022465,2]
[363187602,1748619067364,-553.05,0.00022465,2]
[363187603,1748619067374,-796.08,0.00022465,2]
[363187604,1748619067383,-420.0,0.00022465,2]
[363187605,1748619067393,-420.0,0.00022465,2]
[363187606,1748619067402,-420.0,0.00022465,2]
[363187607,1748619067413,-523.03,0.00022465,2]
[363187608,1748619067423,-420.0,0.00022465,2]
[363187609,1748619067433,-501.69,0.00022465,2]
[363187610,1748619067442,-1811.35,0.00022465,2]
[363187611,1748619067452,-420.0,0.00022465,2]
[363187612,1748619067462,-420.0,0.00022465,2]
[363187613,1748619067471,-420.0,0.00022465,2]
[363187614,1748619067480,-822.17,0.00022465,2]
[363187615,1748619067490,-496.62,0.00022465,2]
[363187616,1748619067501,-641.0,0.00022465,2]
[363187617,1748619067510,-847.29,0.00022465,2]
[363187618,1748619067520,-420.0,0.00022465,2]
[363187619,1748619067530,-420.0,0.00022465,2]
[363187620,1748619067540,-1102.55,0.00022465,2]
[363187621,1748619067550,-473.7899379,0.00022465,2]
[363187622,1748619067560,-443.43,0.00022465,2]
[363187623,1748619067569,-420.0,0.00022465,2]
[363187624,1748619067579,-151.0,0.00022465,7]
[363187625,1748619067588,-151.0,0.00022465,7]
[363187626,1748619067598,-420.0,0.00022465,2]
[363187627,1748619067608,-443.13,0.00022465,2]
[363187628,1748619067617,-751.91,0.00022465,2]
[363187629,1748619067626,-420.0,0.00022465,2]
[363187630,1748619067637,-319.16,0.00022465,2]
[363187631,1748619067647,-420.0,0.00022465,2]
[363187632,1748619067657,-480.94007021,0.00022465,2]
[363187633,1748619067667,-518.42,0.00022465,2]
[363187634,1748619067677,-420.0,0.00022465,2]
[363187635,1748619067687,-242.4,0.00022465,2]
[363187636,1748619067697,-151.0,0.00022465,7]
[363187637,1748619067706,-1199.0,0.00022465,2]
[363187638,1748619067716,-151.0,0.00022465,7]
[363187639,1748619067725,-151.0,0.00022465,7]
[363187640,1748619067735,-420.0,0.00022465,2]
[363187641,1748619067744,-841.83,0.00022465,2]
[363187642,1748619067754,-1711.43,0.00022465,2]
[363187643,1748619067763,-151.0,0.00022465,7]
[363187644,1748619067773,-508.53,0.00022465,2]
[363187645,1748619067783,-420.0,0.00022465,2]
[363187646,1748619067795,-948.67,0.00022465,2]
[363187647,1748619067805,-420.0,0.00022465,2]
[363187648,1748619067814,-610.77,0.00022465,2]
[363187649,1748619067823,-420.0,0.00022465,2]
[363187650,1748619067834,-423.52,0.00022465,2]
[363187651,1748619067844,-2171.03,0.00022465,2]
[363187652,1748619067853,-420.0,0.00022465,2]
[363187653,1748619067864,-420.0,0.00022465,2]
[363187654,1748619067873,-945.97,0.00022465,2]
[363187655,1748619067882,-572.48,0.00022465,2]
[363187656,1748619067892,-1319.71,0.00022465,2]
[363187657,1748619067901,-151.0,0.00022465,7]
[363187658,1748619067911,-456.76,0.00022465,2]
[363187659,1748619067920,-1456.24,0.00022465,2]
[363187660,1748619067930,-636.09,0.00022465,2]
[363187661,1748619067939,-151.0,0.00022465,7]
[363187662,1748619067949,-242.28,0.00022465,2]
[363187663,1748619067958,-743.92,0.00022465,2]
[363187664,1748619067968,-853.5,0.00022465,2]
[363187665,1748619067977,-151.0,0.00022465,7]
[363187666,1748619067987,-160.0,0.00022465,2]
[363187667,1748619067998,-151.0,0.00022465,7]
[363187668,1748619068007,-420.0,0.00022465,2]
[363187669,1748619068017,-1258.56,0.00022465,2]
[363187670,1748619068026,-652.14,0.00022465,2]
[363187671,1748619068036,-569.93,0.00022465,2]
[363187672,1748619068045,-1419.49,0.00022465,2]
[363187673,1748619068055,-584.74,0.00022465,2]
[363187674,1748619068065,-755.51,0.00022465,2]
[363187675,1748619068075,-582.04,0.00022465,2]
[363187676,1748619068084,-420.0,0.00022465,2]
[363187677,1748619068094,-420.0,0.00022465,2]
[363187678,1748619068103,-420.0,0.00022465,2]
[363187679,1748619068112,-781.6,0.00022465,2]
[363187680,1748619068121,-151.0,0.00022465,7]
[363187681,1748619068131,-1041.01,0.00022465,2]
[363187682,1748619068140,-1369.52,0.00022465,2]
[363187683,1748619068149,-474.65,0.00022465,2]
[363187684,1748619068159,-463.6,0.00022465,2]
[363187685,1748619068168,-151.0,0.00022465,7]
[363187686,1748619068179,-151.0,0.00022465,7]
[363187687,1748619068188,-1379.11,0.00022465,2]
[363187688,1748619068197,-420.0,0.00022465,2]
[363187689,1748619068206,-420.0,0.00022465,2]
[363187690,1748619068215,-666.7,0.00022465,2]
[363187691,1748619068225,-151.0,0.00022465,7]
[363187692,1748619068235,-741.8,0.00022465,2]
[363187693,1748619068246,-151.0,0.00022465,7]
[363187694,1748619068255,-151.0,0.00022465,7]
[363187695,1748619068264,-1319.43,0.00022465,2]
[363187696,1748619068274,-576.82,0.00022465,2]
[363187697,1748619068283,-693.89,0.00022465,2]
[363187698,1748619068293,-561.65,0.00022465,2]
[363187699,1748619068302,-151.0,0.00022465,7]
[363187700,1748619068313,-151.0,0.00022465,7]
[363187701,1748619068323,-151.0,0.00022465,7]
[363187702,1748619068334,-1160.92,0.00022465,2]
[363187703,1748619068344,-151.0,0.00022465,7]
[363187704,1748619068354,-420.0,0.00022465,2]
[363187705,1748619068364,-1207.82,0.00022465,2]
[363187706,1748619068373,-420.0,0.00022465,2]
[363187707,1748619068382,-472.93,0.00022465,2]
[363187708,1748619068391,-1166.17,0.00022465,2]
[363187709,1748619068402,-1168.26,0.00022465,2]
[363187710,1748619068412,-420.0,0.00022465,2]
[363187711,1748619068423,-466.98,0.00022465,2]
[363187712,1748619068432,-784.43,0.00022465,2]
[363187713,1748619068442,-723.56,0.00022465,2]
[363187714,1748619068451,-1364.89,0.00022465,2]
[363187715,1748619068463,-587.51,0.00022465,2]
[363187716,1748619068472,-801.75,0.00022465,2]
[363187717,1748619068481,-862.94,0.00022465,2]
[363187718,1748619068491,-604.61,0.00022465,2]
[363187719,1748619068503,-635.16,0.00022465,2]
[363187720,1748619068512,-1137.25,0.00022465,2]
[363187721,1748619068521,-420.0,0.00022465,2]
[363187722,1748619068530,-786.55,0.00022465,2]
[363187723,1748619068539,-420.0,0.00022465,2]
[363187724,1748619068548,-523.95,0.00022465,2]
[363187725,1748619068558,-1160.03,0.00022465,2]
[363187726,1748619068567,-673.65,0.00022465,2]
[363187727,1748619068576,-931.25,0.00022465,2]
[363187728,1748619068585,-420.0,0.00022465,2]
[363187729,1748619068594,-420.0,0.00022465,2]
[363187730,1748619068604,-552.42,0.00022465,2]
[363187731,1748619068613,-420.0,0.00022465,2]
[363187732,1748619068622,-459.7,0.00022465,2]
[363187733,1748619068632,-1724.07,0.00022465,2]
[363187734,1748619068641,-420.0,0.00022465,2]
[363187735,1748619068650,-151.0,0.00022465,7]
[363187736,1748619068659,-153.144144,0.00022465,7]
[363187737,1748619068669,-600.48,0.00022465,2]
[363187738,1748619068679,-658.621131,0.00022465,7]
[363187739,1748619068688,-658.621131,0.00022465,7]
[363187740,1748619068698,-726.29,0.00022465,2]
[363187741,1748619068707,-420.0,0.00022465,2]
[363187742,1748619068717,-472.86,0.00022465,2]
[363187743,1748619068727,-1073.36,0.00022465,2]
[363187744,1748619068737,-658.621131,0.00022465,7]
[363187745,1748619068749,-420.0,0.00022465,2]
[363187746,1748619068758,-658.621131,0.00022465,7]
[363187747,1748619068930,-832.22,0.00022465,2]
[363187748,1748619068941,-151.0,0.00022465,7]
[363187749,1748619068951,-576.09,0.00022465,2]
[363187750,1748619068961,-1371.43,0.00022465,2]
[363187751,1748619068970,-1079.44,0.00022465,2]
[363187752,1748619068979,-538.33,0.00022465,2]
[363187753,1748619068989,-420.0,0.00022465,2]
[363187754,1748619069001,-420.0,0.00022465,2]
[363187755,1748619069011,-971.8,0.00022465,2]
[363187756,1748619069021,-590.55,0.00022465,2]
[363187757,1748619069030,-550.23,0.00022465,2]
[363187758,1748619069039,-476.32,0.00022465,2]
[363187759,1748619069049,-191.58,0.00022465,2]
[363187760,1748619069060,-523.75,0.00022465,2]
[363187761,1748619069071,-420.0,0.00022465,2]
[363187762,1748619069080,-420.0,0.00022465,2]
[363187763,1748619069089,-2381.24,0.00022465,2]
[363187764,1748619069099,-151.0,0.00022465,7]
[363187765,1748619069110,-420.0,0.00022465,2]
[363187766,1748619069120,-420.0,0.00022465,2]
[363187767,1748619069130,-1073.24,0.00022465,2]
[363187768,1748619069141,-420.0,0.00022465,2]
[363187769,1748619069152,-659.08,0.00022465,2]
[363187770,1748619069163,-420.0,0.00022465,2]
[363187771,1748619069172,-535.46,0.00022465,2]
[363187772,1748619069182,-420.0,0.00022465,2]
[363187773,1748619069191,-420.0,0.00022465,2]
[363187774,1748619069201,-151.0,0.00022465,7]
[363187775,1748619069212,-151.0,0.00022465,7]
[363187776,1748619069223,-569.05,0.00022465,2]
[363187777,1748619069233,-420.0,0.00022465,2]
[363187778,1748619069242,-151.0,0.00022465,7]
[363187779,1748619069254,-808.94,0.00022465,2]
[363187780,1748619069263,-1940.81,0.00022465,2]
[363187781,1748619069273,-420.0,0.00022465,2]
[363187782,1748619069282,-420.0,0.00022465,2]
[363187783,1748619069292,-160.0,0.00022465,2]
[363187784,1748619069302,-463.09,0.00022465,2]
[363187785,1748619069312,-627.54,0.00022465,2]
[363187786,1748619069321,-420.0,0.00022465,2]
[363187787,1748619069331,-1123.75,0.00022465,2]
[363187788,1748619069341,-539.2,0.00022465,2]
[363187789,1748619069350,-487.89,0.00022465,2]
[363187790,1748619069359,-420.0,0.00022465,2]
[363187791,1748619069369,-420.0,0.00022465,2]
[363187792,1748619069378,-420.0,0.00022465,2]
[363187793,1748619069388,-1448.39,0.00022465,2]
[363187794,1748619069399,-1124.04,0.00022465,2]
[363187795,1748619069410,-1287.465475,0.00022465,7]
[363187796,1748619069421,-1287.465475,0.00022465,7]
[363187797,1748619069431,-553.55,0.00022465,2]
[363187798,1748619069440,-1287.465475,0.00022465,7]
[363187799,1748619069450,-1287.465475,0.00022465,7]
[363187800,1748619069460,-151.0,0.00022465,7]
[363187801,1748619069470,-151.0,0.00022465,7]
[363187802,1748619069480,-420.0,0.00022465,2]
[363187803,1748619069489,-1053.3,0.00022465,2]
[363187804,1748619069500,-584.13,0.00022465,2]
[363187805,1748619069510,-420.0,0.00022465,2]
[363187806,1748619069520,-1192.82,0.00022465,2]
[363187807,1748619069529,-613.48,0.00022465,2]
[363187808,1748619069539,-420.0,0.00022465,2]
[363187809,1748619069549,-420.0,0.00022465,2]
[363187810,1748619069559,-151.0,0.00022465,7]
[363187811,1748619069569,-420.0,0.00022465,2]
[363187812,1748619069579,-151.0,0.00022465,7]
[363187813,1748619069588,-420.0,0.00022465,2]
[363187814,1748619069598,-491.19,0.00022465,2]
[363187815,1748619069608,-466.46,0.00022465,2]
[363187816,1748619069618,-561.99,0.00022465,2]
[363187817,1748619069627,-420.0,0.00022465,2]
[363187818,1748619069637,-1678.06,0.00022465,2]
[363187819,1748619069647,-420.0,0.00022465,2]
[363187820,1748619069657,-420.0,0.00022465,2]
[363187821,1748619069666,-420.0,0.00022465,2]
[363187822,1748619069676,-1400.08,0.00022465,2]
[363187823,1748619069687,-600.46,0.00022465,2]
[363187824,1748619069696,-626.74,0.00022465,2]
[363187825,1748619069706,-729.19,0.00022465,2]
[363187826,1748619069716,-420.0,0.00022465,2]
[363187827,1748619069726,-849.19,0.00022465,2]
[363187828,1748619069735,-1178.79,0.00022465,2]
[363187829,1748619069744,-420.0,0.00022465,2]
[363187830,1748619069755,-538.21034538,0.00022465,2]
[363187831,1748619069764,-1833.03,0.00022465,2]
[363187832,1748619069774,-558.24,0.00022465,2]
[363187833,1748619069784,-633.87,0.00022465,2]
[363187834,1748619069796,-345.76208385,0.00022465,2]
[363187835,1748619069806,-420.0,0.00022465,2]
[363187836,1748619069816,-465.46,0.00022465,2]
[363187837,1748619069827,-180.808035,0.00022465,7]
[363187838,1748619069836,-1085.24,0.00022465,2]
[363187839,1748619069845,-420.0,0.00022465,2]
[363187840,1748619069855,-3634.58,0.00022465,2]
[363187841,1748619069866,-2016.38,0.00022465,2]
[363187842,1748619069875,-160.0,0.00022465,2]
[363187843,1748619069884,-609.8,0.00022465,2]
[363187844,1748619069894,-420.0,0.00022465,2]
[363187845,1748619069904,-5361.86,0.00022465,2]
[363187846,1748619069913,-1168.36,0.00022465,2]
[363187847,1748619069923,-420.0,0.00022465,2]
[363187848,1748619069932,-2127.16,0.00022465,2]
[363187849,1748619069942,-180.808035,0.00022465,7]
[363187850,1748619069952,-1484.06,0.00022465,2]
[363187851,1748619069962,-420.0,0.00022465,2]
[363187852,1748619069971,-420.0,0.00022465,2]
[363187853,1748619069981,-1109.67,0.00022465,2]
[363187854,1748619069990,-575.02,0.00022465,2]
[363187855,1748619070000,-904.81,0.00022465,2]
[363187856,1748619070009,-614.8,0.00022465,2]
[363187857,1748619070019,-2741.562088,0.00022465,7]
[363187858,1748619070028,-562.44,0.00022465,2]
[363187859,1748619070038,-674.8,0.00022465,2]
[363187860,1748619070047,-420.0,0.00022465,2]
[363187861,1748619070056,-2741.562088,0.00022465,7]
[363187862,1748619070066,-420.0,0.00022465,2]
[363187863,1748619070075,-1824.08,0.00022465,2]
[363187864,1748619070084,-420.0,0.00022465,2]
[363187865,1748619070093,-151.0,0.00022465,7]
[363187866,1748619070102,-151.0,0.00022465,7]
[363187867,1748619070112,-490.58,0.00022465,2]
[363187868,1748619070128,-420.0,0.00022465,2]
[363187869,1748619070145,-7075.98,0.00022465,2]
[363187870,1748619070163,-151.0,0.00022465,7]
[363187871,1748619070182,-179.52062426,0.00022465,2]
[363187872,1748619070198,-420.0,0.00022465,2]
[363187873,1748619070214,-1096.87,0.00022465,2]
[363187874,1748619070232,-723.21,0.00022465,2]
[363187875,1748619070250,-420.0,0.00022465,2]
[363187876,1748619070268,-565.52843042,0.00022465,2]
[363187877,1748619070285,-420.0,0.00022465,2]
[363187878,1748619070304,-1561.66,0.00022465,2]
[363187879,1748619070317,-9812.16,0.00022465,2]
[363187880,1748619070333,-420.0,0.00022465,2]
[363187881,1748619070348,-1075.43,0.00022465,2]
[363187882,1748619070363,-1429.73,0.00022465,2]
[363187883,1748619070379,-1946.94,0.00022465,2]
[363187884,1748619070394,-622.82,0.00022465,2]
[363187885,1748619070408,-11863.32,0.00022465,2]
[363187886,1748619070424,-915.42,0.00022465,2]
[363187887,1748619070439,-797.36,0.00022465,2]
[363187888,1748619070453,-420.0,0.00022465,2]
[363187889,1748619070467,-594.91,0.00022465,2]
[363187890,1748619070483,-1167.97,0.00022465,2]
[363187891,1748619070499,-5682.0,0.00022465,2]
[363187892,1748619070513,-524.77,0.00022465,2]
[363187893,1748619070528,-420.0,0.00022465,2]
[363187894,1748619070543,-1550.77,0.00022465,2]
[363187895,1748619070558,-420.0,0.00022465,2]
[363187896,1748619070572,-420.0,0.00022465,2]
[363187897,1748619070587,-974.63,0.00022465,2]
[363187898,1748619070603,-655.87,0.00022465,2]
[363187899,1748619070617,-600.66,0.00022465,2]
[363187900,1748619070632,-702.81,0.00022465,2]
[363187901,1748619070647,-1024.75,0.00022465,2]
[363187902,1748619070661,-610.074716,0.00022465,7]
[363187903,1748619070677,-609.69,0.00022465,2]
[363187904,1748619070692,-610.074716,0.00022465,7]
[363187905,1748619070707,-1076.37,0.00022465,2]
[363187906,1748619070722,-420.0,0.00022465,2]
[363187907,1748619070738,-464.14,0.00022465,2]
[363187908,1748619070755,-610.074716,0.00022465,7]
[363187909,1748619070768,-610.074716,0.00022465,7]
[363187910,1748619070784,-420.0,0.00022465,2]
[363187911,1748619070801,-160.0,0.00022465,2]
[363187912,1748619070816,-1708.68,0.00022465,2]
[363187913,1748619070831,-9498.11,0.00022465,2]
[363187914,1748619070846,-476.72,0.00022465,2]
[363187915,1748619070861,-420.0,0.00022465,2]
[363187916,1748619070876,-420.0,0.00022465,2]
[363187917,1748619070890,-1013.34,0.00022465,2]
[363187918,1748619070910,-726.29,0.00022465,2]
[363187919,1748619070925,-1568.21,0.00022465,2]
[363187920,1748619070940,-997.73,0.00022465,2]
[363187921,1748619070955,-850.36,0.00022465,2]
[363187922,1748619070969,-829.87,0.00022465,2]
[363187923,1748619070984,-422.30680642,0.00022465,2]
[363187924,1748619071001,-717.62,0.00022465,2]
[363187925,1748619071015,-862.79,0.00022465,2]
[363187926,1748619071030,-2137.81,0.00022465,2]
[363187927,1748619071045,-657.91,0.00022465,2]
[363187928,1748619071061,-420.0,0.00022465,2]
[363187929,1748619071077,-985.32,0.00022465,2]
[363187930,1748619071094,-420.0,0.00022465,2]
[363187931,1748619071108,-420.0,0.00022465,2]
[363187932,1748619071123,-420.0,0.00022465,2]
[363187933,1748619071138,-420.0,0.00022465,2]
[363187934,1748619071153,-420.0,0.00022465,2]
[363187935,1748619071168,-541.52,0.00022465,2]
[363187936,1748619071182,-1399.41,0.00022465,2]
[363187937,1748619071197,-1150.73,0.00022465,2]
[363187938,1748619071213,-420.0,0.00022465,2]
[363187939,1748619071228,-2296.95,0.00022465,2]
[363187940,1748619071243,-421.32382942,0.00022465,2]
[363187941,1748619071260,-420.0,0.00022465,2]
[363187942,1748619071275,-795.59,0.00022465,2]
[363187943,1748619071290,-682.72,0.00022465,2]
[363187944,1748619071305,-575.16,0.00022465,2]
[363187945,1748619071319,-3116.89,0.00022465,2]
[363187946,1748619071334,-421.88318102,0.00022465,2]
[363187947,1748619071350,-1061.77,0.00022465,2]
[363187948,1748619071364,-1233.85,0.00022465,2]
[363187949,1748619071379,-420.0,0.00022465,2]
[363187950,1748619071395,-11481.25,0.00022465,2]
[363187951,1748619071409,-500.0,0.00022465,2]
[363187952,1748619071426,-426.85,0.00022465,2]
[363187953,1748619071441,-1096.82,0.00022465,2]
[363187954,1748619071456,-420.0,0.00022465,2]
[363187955,1748619071472,-857.17,0.00022465,2]
[363187956,1748619071486,-1626.19,0.00022465,2]
[363187957,1748619071501,-420.0,0.00022465,2]
[363187958,1748619071515,-634.02,0.00022465,2]
[363187959,1748619071531,-1283.49,0.00022465,2]
[363187960,1748619071545,-1507.45,0.00022465,2]
[363187961,1748619071560,-532.67,0.00022465,2]
[363187962,1748619071575,-441.96,0.00022465,2]
[363187963,1748619071590,-420.0,0.00022465,2]
[363187964,1748619071605,-3197.32,0.00022465,2]
[363187965,1748619071621,-1018.57,0.00022465,2]
[363187966,1748619071637,-420.0,0.00022465,2]
[363187967,1748619071652,-1122.87,0.00022465,2]
[363187968,1748619071666,-2066.87,0.00022465,2]
[363187969,1748619071681,-489.48,0.00022465,2]
[363187970,1748619071697,-461.31,0.00022465,2]
[363187971,1748619071713,-429.62,0.00022465,2]
[363187972,1748619071727,-420.0,0.00022465,2]
[363187973,1748619071742,-420.0,0.00022465,2]
[363187974,1748619071757,-3670.01,0.00022465,2]
[363187975,1748619071771,-805.58,0.00022465,2]
[363187976,1748619071786,-1386.9,0.00022465,2]
[363187977,1748619071803,-894.1,0.00022465,2]
[363187978,1748619071820,-2960.24,0.00022465,2]
[363187979,1748619071836,-432.08255107,0.00022465,2]
[363187980,1748619071847,-975.57,0.00022465,2]
[363187981,1748619071857,-1963.11,0.00022465,2]
[363187982,1748619071868,-906.34,0.00022465,2]
[363187983,1748619071880,-427.43910638,0.00022465,2]
[363187984,1748619071890,-7808.56,0.00022465,2]
[363187985,1748619072182,-1068.95,0.00022465,2]
[363187986,1748619072208,-1446.02,0.00022465,2]
[363187987,1748619072221,-1309.89,0.00022465,2]
[363187988,1748619072232,-5878.54,0.00022465,2]
[363187989,1748619072244,-159.595298,0.00022465,7]
[363187990,1748619072255,-159.595298,0.00022465,7]
[363187991,1748619072264,-4452.28,0.00022465,2]
[363187992,1748619072273,-1017.748332,0.00022465,7]
[363187993,1748619072282,-591.35,0.00022465,2]
[363187994,1748619072292,-1017.748332,0.00022465,7]
[363187995,1748619072301,-8491.51,0.00022465,2]
[363187996,1748619072311,-982.46,0.00022465,2]
[363187997,1748619072320,-159.595298,0.00022465,7]
[363187998,1748619072331,-159.595298,0.00022465,7]
[363187999,1748619072341,-958.4,0.00022465,2]
[363188000,1748619072350,-139506.04,0.00022465,2]
[363188001,1748619072361,-1343.03,0.00022465,2]
[363188002,1748619072371,-1017.748332,0.00022465,7]
[363188003,1748619072380,-1033.36,0.00022465,2]
[363188004,1748619072391,-657.44,0.00022465,2]
[363188005,1748619072401,-1017.748332,0.00022465,7]
[363188006,1748619072410,-420.0,0.00022465,2]
[363188007,1748619072420,-453.46,0.00022465,2]
[363188008,1748619072430,-1032.71,0.00022465,2]
[363188009,1748619072439,-1623.73,0.00022465,2]
[363188010,1748619072448,-3547.4,0.00022465,2]
[363188011,1748619072458,-458.54,0.00022465,2]
[363188012,1748619072467,-982.85,0.00022465,2]
[363188013,1748619072477,-1005.97,0.00022465,2]
[363188014,1748619072487,-3804.58,0.00022465,2]
[363188015,1748619072497,-1623.36,0.00022465,2]
[363188016,1748619072507,-37354.79,0.00022465,2]
[363188017,1748619072517,-420.0,0.00022465,2]
[363188018,1748619072527,-1684.99,0.00022465,2]
[363188019,1748619072536,-420.0,0.00022465,2]
[363188020,1748619072546,-1215.02,0.00022465,2]
[363188021,1748619072555,-937.17,0.00022465,2]
[363188022,1748619072565,-753.84,0.00022465,2]
[363188023,1748619072575,-420.0,0.00022465,2]
[363188024,1748619072585,-10069.56,0.00022465,2]
[363188025,1748619072595,-2424.56,0.00022465,2]
[363188026,1748619072605,-519.37,0.00022465,2]
[363188027,1748619072615,-7476.47,0.00022465,2]
[363188028,1748619072625,-868.93,0.00022465,2]
[363188029,1748619072635,-628.41,0.00022465,2]
[363188030,1748619072645,-422.51,0.00022465,2]